bitfinex/quotes_ETHUSD_20250925
["timestamp","ask_amount","ask_price","bid_price","bid_amount"]
[1758789382171,5.8673524,4034.9,4034.8,0.33022791]
[1758789382470,3.38897624,4034.9,4034.8,0.33022791]
[1758789382765,3.38897624,4034.9,4034.8,1.03932791]
[1758789383445,3.4137866,4034.9,4034.8,0.33022791]
[1758789383651,5.89216276,4034.9,4034.8,0.33022791]
[1758789383827,6.5424524,4034.9,4034.8,0.33022791]
[1758789384275,6.5424524,4034.9,4034.8,0.002]
[1758789384624,6.15367616,4034.9,4034.8,0.002]
[1758789385754,6.15367616,4034.9,4034.3,0.002]
[1758789385755,3.0,4034.8,4034.3,0.002]
[1758789386065,30.10689522,4034.4,4034.3,0.002]
[1758789386236,34.26789522,4034.4,4034.3,0.002]
[1758789386656,34.94299522,4034.4,4034.3,0.002]
[1758789390071,34.94219522,4034.4,4034.3,0.002]
[1758789390376,2.4788062,4034.2,4034.1,0.02]
[1758789390571,2.4789291,4034.0,4033.9,0.002]
[1758789390872,2.4789291,4034.0,4033.5,0.002]
[1758789390873,27.6282119,4033.6,4033.5,0.002]
[1758789391074,21.95428088,4033.6,4033.5,0.002]
[1758789391437,22.62938088,4033.6,4033.5,0.002]
[1758789391853,21.95428088,4033.6,4033.5,0.002]
[1758789393652,22.19738088,4033.6,4033.5,0.002]
[1758789393859,22.62938088,4033.6,4033.5,0.002]
[1758789395257,23.01832373,4033.6,4033.5,0.002]
[1758789395454,35.33242968,4033.6,4033.5,0.002]
[1758789397872,23.01832373,4033.6,4033.5,0.002]
[1758789398085,5.86811778,4033.6,4033.5,0.002]
[1758789398261,22.34322373,4033.6,4033.5,0.238]
[1758789398663,22.34322373,4033.6,4033.5,0.002]
[1758789398859,22.34322373,4033.6,4033.5,0.238]
[1758789399674,22.34322373,4033.6,4033.5,0.002]
[1758789401783,22.34322373,4033.6,4033.5,0.2462]
[1758789402515,22.34322373,4033.6,4033.5,0.002]
[1758789402817,22.34322373,4033.6,4033.5,0.2462]
[1758789404109,22.34322373,4033.6,4033.5,0.7116]
[1758789404110,0.38894285,4033.6,4033.5,0.7116]
[1758789404411,3.0,4033.7,4033.5,0.7116]
[1758789404611,3.0,4033.7,4033.6,0.7096]
[1758789405912,3.02481036,4033.7,4033.5,0.2482]
[1758789406112,22.63938088,4033.6,4033.5,0.002]
[1758789406719,24.74569451,4033.6,4033.5,0.002]
[1758789407093,25.13463749,4033.6,4033.5,0.002]
[1758789408314,20.97363749,4033.6,4033.5,0.002]
[1758789408517,20.28853749,4033.6,4033.5,0.002]
[1758789408716,24.44853749,4033.6,4033.5,0.002]
[1758789408904,21.96936256,4033.6,4033.5,0.7116]
[1758789409109,24.44853749,4033.6,4033.5,0.7116]
[1758789410230,17.80936256,4033.6,4033.5,0.7116]
[1758789410444,17.42041958,4033.6,4033.5,0.7116]
[1758789412221,3.0,4033.6,4033.5,0.7116]
[1758789413001,17.42041958,4033.6,4033.5,0.7116]
[1758789414589,17.42041958,4033.6,4033.5,0.2462]
[1758789415288,17.41961958,4033.6,4033.5,0.7116]
[1758789416415,17.41961958,4033.6,4033.5,0.002]
[1758789416932,17.41961958,4033.6,4033.5,0.7316]
[1758789417499,17.80851558,4033.6,4033.5,0.7316]
[1758789417929,17.80851558,4033.6,4033.5,0.9758]
[1758789419621,17.80851558,4033.6,4033.5,0.7316]
[1758789420349,17.80851558,4033.6,4033.5,0.2462]
[1758789420635,17.80851558,4033.6,4033.5,0.7116]
[1758789421204,3.388096,4033.6,4033.5,0.7116]
[1758789421651,0.388896,4033.6,4033.5,4.49165752]
[1758789421928,0.001,4033.9,4033.8,2.47905201]
[1758789422330,0.001,4033.9,4033.8,3.14535201]
[1758789422547,0.001,4033.9,4033.8,3.17014253]
[1758789422699,0.001,4033.9,4033.8,3.91576665]
[1758789422899,0.001,4033.9,4033.8,5.23468145]
[1758789423131,0.001,4033.9,4033.8,5.20989093]
[1758789423294,0.001,4033.9,4033.8,2.06453892]
[1758789423495,0.001,4033.9,4033.8,8.04997613]
[1758789423690,0.001,4033.9,4033.8,0.74562412]
[1758789425097,0.38985902,4033.9,4033.8,0.74562412]
[1758789426292,0.38985902,4033.9,4033.8,0.97992412]
[1758789426807,0.38985902,4033.9,4033.8,0.74562412]
[1758789427629,0.38985902,4033.9,4033.8,0.97992412]
[1758789428599,0.38985902,4033.9,4033.8,1.41192412]
[1758789428830,0.38985902,4033.9,4033.8,0.74562412]
[1758789429608,0.38985902,4033.9,4033.8,1.41192412]
[1758789430009,0.38985902,4033.9,4033.8,1.43671464]
[1758789430232,0.38985902,4033.9,4033.8,1.41192412]
[1758789431646,0.38985902,4033.9,4033.8,2.21961099]
[1758789431834,0.38985902,4033.9,4033.8,4.72345352]
[1758789432436,0.001,4033.9,4033.8,4.72345352]
[1758789432833,0.001,4033.9,4033.8,2.24440151]
[1758789433140,0.001,4033.9,4033.8,0.99252412]
[1758789433812,0.001,4033.9,4033.8,4.90362412]
[1758789434221,0.001,4033.9,4033.8,5.61772412]
[1758789434432,0.001,4033.9,4033.8,3.93877613]
[1758789434633,0.001,4033.9,4033.8,8.12156665]
[1758789434832,0.001,4033.9,4033.8,9.36364684]
[1758789439945,0.001,4033.9,4033.8,6.88459483]
[1758789440421,0.001,4033.9,4033.8,9.36364684]
[1758789441030,0.0002,4033.9,4033.8,9.36364684]
[1758789443949,0.0002,4033.9,4033.8,2.25939483]
[1758789444112,0.0002,4033.9,4033.8,4.90262412]
[1758789444527,0.0002,4033.9,4033.8,5.14952412]
[1758789445130,0.0002,4033.9,4033.8,7.62857613]
[1758789445530,0.0002,4033.9,4033.8,5.14952412]
[1758789446050,0.0002,4033.9,4033.8,7.62857613]
[1758789446553,0.0002,4033.9,4033.8,5.14952412]
[1758789446752,0.0002,4033.9,4033.8,4.90262412]
[1758789446952,0.0002,4033.9,4033.8,1.47075239]
[1758789447150,0.0002,4033.9,4033.8,7.38167613]
[1758789447350,0.0002,4033.9,4033.8,7.62857613]
[1758789448088,0.0002,4033.9,4033.8,8.09577613]
[1758789448363,0.0002,4033.9,4033.8,8.23897613]
[1758789450046,0.0002,4033.9,4033.8,7.52487613]
[1758789450246,0.0002,4033.9,4033.8,10.86327084]
[1758789450647,0.0002,4033.9,4033.8,10.84327084]
[1758789454010,0.0002,4033.9,4033.8,0.86882412]
[1758789454204,3.6668,4033.9,4033.8,2.22862412]
[1758789455379,3.6668,4033.9,4033.8,0.74562412]
[1758789455607,6.14579055,4033.9,4033.8,0.74562412]
[1758789455786,6.14579055,4033.9,4033.8,4.90162412]
[1758789457008,3.6668,4033.9,4033.8,4.90162412]
[1758789457212,6.14579055,4033.9,4033.8,4.90162412]
[1758789457905,6.14579055,4033.9,4033.6,0.002]
[1758789457906,2.47911346,4033.7,4033.6,0.002]
[1758789458116,19.9243434,4033.7,4033.6,2.422]
[1758789458314,19.89953304,4033.7,4033.6,2.422]
[1758789458507,20.56613304,4033.7,4033.6,2.422]
[1758789460422,20.56613304,4033.7,4033.6,0.002]
[1758789466446,20.56533304,4033.7,4033.6,0.002]
[1758789467630,22.6265392,4033.7,4033.6,0.002]
[1758789467834,23.01548242,4033.7,4033.6,0.002]
[1758789473351,5.47917493,4033.6,4033.4,0.002]
[1758789473671,34.31129823,4033.5,4033.4,0.002]
[1758789473969,34.96948787,4033.5,4033.4,0.002]
[1758789479994,35.35845301,4033.5,4033.4,0.002]
[1758789480193,22.34982727,4033.5,4033.4,0.002]
[1758789480367,35.35845301,4033.5,4033.4,0.002]
[1758789481195,34.96948787,4033.5,4033.4,0.002]
[1758789481997,34.53118787,4033.5,4033.4,0.002]
[1758789482675,34.96888787,4033.5,4033.4,0.002]
[1758789485582,35.35785584,4033.5,4033.4,0.002]
[1758789486511,34.67545584,4033.5,4033.4,0.002]
[1758789487030,34.92075584,4033.5,4033.4,0.002]
[1758789488085,34.67545584,4033.5,4033.4,0.002]
[1758789488508,30.51945584,4033.5,4033.4,0.002]
[1758789488783,22.3498301,4033.5,4033.4,0.002]
[1758789488983,34.67545584,4033.5,4033.4,0.002]
[1758789490551,34.28648787,4033.5,4033.4,0.002]
[1758789491066,21.96086213,4033.5,4033.4,0.002]
[1758789491758,21.96006213,4033.5,4033.4,0.002]
[1758789494130,22.20426213,4033.5,4033.4,0.002]
[1758789495232,34.99608787,4033.5,4033.4,0.002]
[1758789496177,2.4794208,4033.2,4033.1,0.2551]
[1758789496351,34.31048264,4033.2,4033.1,0.2551]
[1758789496556,34.99607228,4033.2,4033.1,0.022]
[1758789496990,35.38504671,4033.2,4033.1,0.022]
[1758789500759,34.99607228,4033.2,4033.1,0.022]
[1758789502273,34.28567228,4033.2,4033.1,0.022]
[1758789502660,34.99607228,4033.2,4033.1,0.022]
[1758789504356,5.47948228,4033.1,4033.0,0.002]
[1758789504764,6.18988228,4033.1,4033.0,0.002]
[1758789505088,6.57886967,4033.1,4033.0,0.002]
[1758789505983,6.11266967,4033.1,4033.0,0.002]
[1758789506187,6.57886967,4033.1,4033.0,0.002]
[1758789507086,6.18988228,4033.1,4033.0,0.002]
[1758789511500,6.18988228,4033.1,4033.0,0.10147564]
[1758789512969,2.48003571,4032.2,4031.7,0.2378]
[1758789513172,34.31009755,4032.2,4032.0,0.33927564]
[1758789513370,34.28528719,4032.2,4032.0,0.2378]
[1758789514907,30.13128719,4032.2,4032.0,0.2378]
[1758789515101,34.28528719,4032.2,4031.8,0.4747]
[1758789515313,34.28528719,4032.2,4031.9,0.2378]
[1758789516017,34.28528719,4032.2,4031.6,0.4747]
[1758789516231,34.99568719,4032.2,4031.7,0.2378]
[1758789516441,34.52948719,4032.2,4031.8,0.2378]
[1758789516727,34.28528719,4032.2,4031.9,0.2378]
[1758789517113,34.91855467,4032.2,4032.1,0.022]
[1758789517312,35.38395467,4032.2,4032.1,0.022]
[1758789517532,34.91775467,4032.2,4032.1,0.022]
[1758789518387,35.38395467,4032.2,4032.1,0.022]
[1758789519622,2.48034327,4031.7,4031.6,0.4747]
[1758789519823,2.48065092,4031.2,4031.1,0.02]
[1758789519997,30.15671276,4031.2,4031.1,0.02]
[1758789520201,30.52103434,4031.2,4031.1,0.4947]
[1758789520605,30.52103434,4031.2,4031.1,0.2578]
[1758789520817,30.1319024,4031.2,4031.1,0.2578]
[1758789520994,30.25581834,4031.2,4031.1,0.02]
[1758789521191,31.29131834,4031.2,4031.1,0.02]
[1758789521396,31.29131834,4031.2,4030.6,0.2444]
[1758789521397,2.48095864,4030.7,4030.6,0.2444]
[1758789521631,9.63495864,4030.7,4030.6,0.2444]
[1758789521802,9.63495864,4030.7,4030.6,0.6747]
[1758789522396,7.154,4030.7,4030.6,0.6747]
[1758789522620,15.32562574,4030.7,4030.6,0.6747]
[1758789523567,3.0,4030.7,4030.6,0.6747]
[1758789523697,12.32562574,4030.9,4030.6,0.6747]
[1758789523899,12.32562574,4030.9,4030.7,1.01508629]
[1758789524102,15.32562574,4030.9,4030.8,0.4303]
[1758789524297,15.32562574,4030.9,4030.8,0.6747]
[1758789524710,3.0,4030.9,4030.8,0.6747]
[1758789525113,3.38916505,4030.9,4030.8,0.6747]
[1758789526613,17.8235105,4030.9,4030.8,0.6747]
[1758789527396,20.30434604,4030.9,4030.8,0.6747]
[1758789528033,20.30434604,4030.9,4030.8,1.42101786]
[1758789528935,17.8235105,4030.9,4030.8,1.42101786]
[1758789529136,20.30434604,4030.9,4030.8,1.42101786]
[1758789530233,20.30434604,4030.9,4030.8,0.99071786]
[1758789530394,20.30434604,4030.9,4030.8,1.42101786]
[1758789530856,19.91518099,4030.9,4030.8,1.42101786]
[1758789531161,17.43434545,4030.9,4030.8,1.42101786]
[1758789531329,19.91518099,4030.9,4030.8,1.42101786]
[1758789531833,19.91518099,4030.9,4030.8,0.6747]
[1758789532155,17.43434545,4030.9,4030.8,0.6747]
[1758789533542,17.43434545,4030.9,4030.8,1.42106613]
[1758789534058,3.38916591,4030.9,4030.8,1.42106613]
[1758789534235,3.38916591,4030.9,4030.8,1.42306613]
[1758789534612,17.82351136,4030.9,4030.8,1.42306613]
[1758789535445,3.38916591,4030.9,4030.8,1.42306613]
[1758789535647,0.38916591,4030.9,4030.8,4.54495302]
[1758789536863,0.38916591,4030.9,4030.8,2.06405593]
[1758789537160,0.38916591,4030.9,4030.8,1.42306613]
[1758789537963,0.38916591,4030.9,4030.8,0.74836613]
[1758789538274,0.38916591,4030.9,4030.8,0.99276613]
[1758789538557,0.38916591,4030.9,4030.8,1.42306613]
[1758789540160,0.38916591,4030.9,4030.8,0.99276613]
[1758789540359,14.82351136,4030.9,4030.8,0.74836613]
[1758789540534,0.38916591,4030.9,4030.8,1.42306613]
[1758789540929,3.001,4031.1,4030.8,4.70977188]
[1758789541163,3.001,4031.1,4030.8,4.05988085]
[1758789541364,3.001,4031.1,4030.9,0.6747]
[1758789541774,0.001,4031.1,4031.0,0.71980774]
[1758789541940,0.001,4031.1,4031.0,3.20058174]
[1758789542169,0.001,4031.1,4031.0,3.94680306]
[1758789542464,0.001,4031.1,4031.0,4.26706123]
[1758789542646,0.0002,4031.1,4031.0,4.26706123]
[1758789544535,0.0002,4031.1,4031.0,8.42006123]
[1758789544866,0.0002,4031.1,4031.0,8.39525349]
[1758789545237,0.0002,4031.1,4031.0,5.91447949]
[1758789545563,0.0002,4031.1,4031.0,8.39525349]
[1758789547586,0.0002,4031.1,4031.0,4.24225349]
[1758789547784,0.0002,4031.1,4031.0,5.91447949]
[1758789548090,0.0002,4031.1,4031.0,8.39525349]
[1758789550171,0.0002,4031.1,4031.0,5.91447949]
[1758789550508,0.0002,4031.1,4031.0,1.06647949]
[1758789550710,0.0002,4031.1,4031.0,0.74622132]
[1758789550996,0.6777,4031.1,4031.0,0.74622132]
[1758789551202,0.6777,4031.1,4031.0,4.89922132]
[1758789551561,0.2281,4031.1,4031.0,4.89922132]
[1758789552001,0.0002,4031.1,4031.0,4.89922132]
[1758789552295,0.2281,4031.1,4031.0,4.89922132]
[1758789552795,0.6777,4031.1,4031.0,4.89922132]
[1758789553093,0.6777,4031.1,4031.0,4.90122132]
[1758789554187,0.6777,4031.1,4031.0,0.74822132]
[1758789554392,0.6777,4031.1,4031.0,4.90022132]
[1758789554584,0.2281,4031.1,4031.0,4.90022132]
[1758789554778,0.6777,4031.1,4031.0,4.90022132]
[1758789555180,0.6777,4031.1,4031.0,0.74822132]
[1758789557396,0.2281,4031.1,4031.0,0.74822132]
[1758789557599,0.0002,4031.1,4031.0,3.22899532]
[1758789557785,0.0002,4031.1,4031.0,1.45142132]
[1758789557992,0.38932305,4031.1,4031.0,1.45142132]
[1758789558300,0.38932305,4031.1,4031.0,0.98062132]
[1758789560002,0.38932305,4031.1,4031.0,3.46139532]
[1758789560170,0.38932305,4031.1,4031.0,0.98062132]
[1758789561678,0.38932305,4031.1,4031.0,0.74822132]
[1758789564690,0.38932305,4031.1,4031.0,0.98062132]
[1758789565421,0.38932305,4031.1,4031.0,4.90022132]
[1758789565729,17.98188096,4031.1,4031.0,0.002]
[1758789566021,20.59275791,4031.1,4031.0,0.002]
[1758789567178,6.15841246,4031.1,4031.0,0.002]
[1758789567378,24.74475791,4031.1,4031.0,0.002]
[1758789568087,24.74395791,4031.1,4031.0,0.002]
[1758789568817,25.13313872,4031.1,4031.0,0.002]
[1758789569513,5.86929327,4031.1,4031.0,0.002]
[1758789569812,20.98113872,4031.1,4031.0,0.002]
[1758789572415,20.59295791,4031.1,4031.0,0.002]
[1758789576517,20.98214811,4031.1,4031.0,0.002]
[1758789578096,5.87030266,4031.1,4031.0,0.002]
[1758789579820,3.001,4031.1,4031.0,0.2344]
[1758789580118,5.48171246,4031.1,4031.0,0.7052]
[1758789581184,5.48171246,4031.1,4031.0,0.002]
[1758789581393,6.20071246,4031.1,4031.0,0.002]
[1758789583121,6.58988553,4031.1,4031.0,0.002]
[1758789583523,6.11998553,4031.1,4031.0,0.002]
[1758789583720,6.58988553,4031.1,4031.0,0.002]
[1758789586417,3.39017307,4031.1,4031.0,0.6761]
[1758789586596,20.57914134,4031.1,4031.0,0.002]
[1758789586799,21.02423098,4031.1,4031.0,0.002]
[1758789587596,6.11998553,4031.1,4031.0,0.002]
[1758789587801,20.30523098,4031.1,4031.0,0.002]
[1758789588733,18.2087233,4031.1,4031.0,0.002]
[1758789589114,18.2087233,4031.1,4031.0,0.2476]
[1758789589315,3.39017307,4031.1,4031.0,0.6761]
[1758789589520,18.2087233,4031.1,4031.0,0.6761]
[1758789591104,15.72801084,4031.1,4031.0,0.6761]
[1758789591304,3.39017307,4031.1,4031.0,0.6761]
[1758789591539,3.001,4031.1,4031.0,1.03505582]
[1758789591926,3.001,4031.1,4031.0,0.6761]
[1758789592126,5.48171246,4031.1,4031.0,0.002]
[1758789592435,3.001,4031.1,4031.0,0.002]
[1758789592610,3.001,4031.1,4031.0,0.2476]
[1758789593214,0.001,4031.1,4031.0,0.2476]
[1758789593610,0.0002,4031.1,4031.0,0.6761]
[1758789593812,2.48091246,4031.1,4031.0,0.6761]
[1758789594220,0.0002,4031.1,4031.0,0.2476]
[1758789594439,0.0002,4031.1,4031.0,0.6761]
[1758789594643,0.38934572,4031.1,4031.0,0.6761]
[1758789594947,0.38934572,4031.1,4031.0,3.51830573]
[1758789595142,0.38934572,4031.1,4031.0,3.54311347]
[1758789595436,0.38934572,4031.1,4031.0,4.28927726]
[1758789595810,0.38934572,4031.1,4031.0,8.44027726]
[1758789596012,0.38934572,4031.1,4031.0,8.41546952]
[1758789597144,0.0002,4031.1,4031.0,8.41546952]
[1758789599041,0.0002,4031.1,4031.0,8.53946952]
[1758789600412,0.0002,4031.1,4031.0,8.53846952]
[1758789600636,0.0002,4031.1,4031.0,10.60646952]
[1758789600915,0.0002,4031.1,4031.0,3.95996952]
[1758789601114,0.0002,4031.1,4031.0,10.48246952]
[1758789601336,0.0002,4031.1,4031.0,4.26446952]
[1758789601539,0.0002,4031.1,4031.0,10.48246952]
[1758789603050,0.0002,4031.1,4031.0,3.83596952]
[1758789603214,0.0002,4031.1,4031.0,10.03946952]
[1758789603616,0.0002,4031.1,4031.0,10.47726952]
[1758789617153,0.0002,4031.1,4031.0,10.00518999]
[1758789617325,0.0002,4031.1,4031.0,10.62867871]
[1758789617762,0.0002,4031.1,4031.0,11.54467871]
[1758789617928,0.0002,4031.1,4031.0,14.54467871]
[1758789618953,0.001,4031.6,4031.5,2.48046632]
[1758789618954,0.0004,4031.6,4031.5,2.48046632]
[1758789619262,0.0004,4031.6,4031.5,7.15037184]
[1758789619469,0.0004,4031.6,4031.5,7.87416718]
[1758789619768,0.0004,4031.6,4031.5,9.36236718]
[1758789621103,0.0004,4031.6,4031.5,8.73776718]
[1758789621408,0.0004,4031.6,4031.5,4.58876718]
[1758789621574,0.0004,4031.6,4031.5,11.03056718]
[1758789622313,0.0004,4031.6,4031.5,4.81556718]
[1758789622521,0.0004,4031.6,4031.5,11.03056718]
[1758789625020,0.0004,4031.6,4031.5,3.79676718]
[1758789625306,0.6966,4031.6,4031.5,3.79676718]
[1758789625470,0.0004,4031.6,4031.5,10.01176718]
[1758789628485,0.0004,4031.6,4031.5,10.23856718]
[1758789628920,0.0004,4031.6,4031.5,11.42836718]
[1758789629423,0.0004,4031.6,4031.5,14.42836718]
[1758789630806,0.0004,4031.6,4031.5,14.44836718]
[1758789634031,0.0004,4031.6,4031.5,14.04956718]
[1758789634395,0.0004,4031.6,4031.5,14.44736718]
[1758789635426,0.0004,4031.6,4031.5,8.23336718]
[1758789635729,0.0004,4031.6,4031.5,14.44736718]
[1758789636528,0.0004,4031.6,4031.5,14.04956718]
[1758789637091,0.0004,4031.6,4031.5,11.75576718]
[1758789637317,0.0004,4031.6,4031.5,14.02956718]
[1758789637641,0.0004,4031.6,4031.5,14.42736718]
[1758789638527,0.0004,4031.6,4031.5,14.02956718]
[1758789638692,0.0004,4031.6,4031.5,7.58876718]
[1758789638899,0.2348,4031.6,4031.5,13.80276718]
[1758789639443,0.2348,4031.6,4031.5,9.51466632]
[1758789639444,0.6966,4031.6,4031.5,9.51466632]
[1758789639737,0.6966,4031.6,4031.5,9.51366632]
[1758789644335,0.6958,4031.6,4031.5,3.30066632]
[1758789644524,0.6958,4031.6,4031.5,9.51366632]
[1758789646003,0.6958,4031.6,4031.5,9.51566632]
[1758789646203,0.6968,4031.6,4031.5,9.51566632]
[1758789651145,0.6968,4031.6,4031.5,3.30266632]
[1758789651444,0.6968,4031.6,4031.5,9.41166632]
[1758789653445,0.001,4031.6,4031.5,10.44318708]
[1758789654218,0.6927,4031.6,4031.5,9.41166632]
[1758789654414,0.001,4031.6,4031.5,9.41166632]
[1758789655450,0.001,4031.6,4031.5,9.53566632]
[1758789656250,0.001,4031.6,4031.5,10.97526632]
[1758789659861,0.001,4031.6,4031.5,10.95526632]
[1758789660260,0.001,4031.6,4031.5,12.29884235]
[1758789662386,0.001,4031.6,4031.5,15.29884235]
[1758789664881,0.001,4031.6,4031.5,15.31884235]
[1758789668893,0.7036,4031.6,4031.5,6.71324235]
[1758789669100,0.7036,4031.6,4031.5,9.51566632]
[1758789669255,0.7036,4031.6,4031.5,10.30766632]
[1758789669853,0.7028,4031.6,4031.5,10.30766632]
[1758789671709,0.7028,4031.6,4031.5,4.09466632]
[1758789671876,0.7028,4031.6,4031.5,10.30766632]
[1758789672076,0.7028,4031.6,4031.5,14.58648234]
[1758789672488,0.7028,4031.6,4031.5,6.30266632]
[1758789672824,0.7028,4031.6,4031.5,12.51466632]
[1758789672999,0.7028,4031.6,4031.5,10.44766632]
[1758789673182,0.7028,4031.6,4031.5,12.51466632]
[1758789673573,0.7028,4031.6,4031.5,10.44766632]
[1758789673985,0.7028,4031.6,4031.5,12.51466632]
[1758789674586,0.7028,4031.6,4031.5,7.44766632]
[1758789674796,0.7028,4031.6,4031.5,9.51466632]
[1758789683605,0.0002,4031.6,4031.5,3.30266632]
[1758789683805,0.6586,4031.6,4031.5,9.51466632]
[1758789684130,0.6586,4031.6,4031.5,3.30266632]
[1758789684332,0.6586,4031.6,4031.5,9.39066632]
[1758789686531,0.6586,4031.6,4031.5,7.32366632]
[1758789686745,0.6586,4031.6,4031.5,3.17866632]
[1758789686902,0.6586,4031.6,4031.5,9.39066632]
[1758789687104,0.6586,4031.6,4031.5,3.17866632]
[1758789687422,0.6586,4031.6,4031.5,7.32366632]
[1758789688025,0.6586,4031.6,4031.5,3.17866632]
[1758789688335,0.0002,4031.6,4031.5,7.32366632]
[1758789688537,0.6586,4031.6,4031.5,7.32366632]
[1758789694746,0.6586,4031.6,4031.5,0.6982]
[1758789695249,0.6578,4031.6,4031.5,2.3572]
[1758789695451,0.6578,4031.6,4031.5,0.6982]
[1758789695616,0.68261036,4031.6,4031.5,0.002]
[1758789695815,0.68261036,4031.6,4031.5,1.027]
[1758789697451,0.6578,4031.6,4031.5,1.027]
[1758789697650,0.6588,4031.6,4031.5,1.027]
[1758789698052,0.6588,4031.6,4031.5,0.002]
[1758789698256,0.6588,4031.6,4031.5,4.147]
[1758789699859,0.68361036,4031.6,4031.5,0.002]
[1758789700053,3.16401516,4031.6,4031.5,0.681]
[1758789700254,3.16401516,4031.6,4031.5,0.002]
[1758789700255,6.16401516,4031.6,4031.5,0.002]
[1758789700460,6.1392048,4031.6,4031.5,0.002]
[1758789703231,3.001,4031.6,4031.5,0.002]
[1758789703433,0.001,4031.6,4031.5,2.48246632]
[1758789704129,0.001,4031.6,4031.5,2.72086632]
[1758789704360,0.001,4031.6,4031.5,3.11906632]
[1758789704739,0.001,4031.6,4031.5,3.57496632]
[1758789704950,0.001,4031.6,4031.5,4.60742182]
[1758789705260,0.001,4031.6,4031.5,4.63222648]
[1758789706863,0.001,4031.6,4031.5,4.60742182]
[1758789707669,0.001,4031.6,4031.5,3.97082182]
[1758789707834,0.001,4031.6,4031.5,10.18282182]
[1758789708037,0.6956,4031.6,4031.5,10.18282182]
[1758789708263,0.001,4031.6,4031.5,10.18282182]
[1758789709838,0.001,4031.6,4031.5,8.11582182]
[1758789710167,0.001,4031.6,4031.5,10.18282182]
[1758789710771,0.2407,4031.6,4031.5,10.18282182]
[1758789710954,0.001,4031.6,4031.5,10.18282182]
[1758789715150,0.6956,4031.6,4031.5,10.18282182]
[1758789715339,0.6956,4031.6,4031.5,9.15036632]
[1758789716164,0.6956,4031.6,4031.5,9.14936632]
[1758789716876,13.02497904,4031.6,4031.5,0.4579]
[1758789717064,13.02497904,4031.6,4031.5,4.6019]
[1758789718599,13.02497904,4031.6,4031.5,0.4579]
[1758789718880,13.02497904,4031.6,4031.5,4.146]
[1758789720251,0.6956,4031.6,4031.5,4.146]
[1758789720561,13.02497904,4031.6,4031.5,4.146]
[1758789720867,13.02417904,4031.6,4031.5,4.146]
[1758789722978,13.02417904,4031.6,4031.5,0.002]
[1758789723180,13.02417904,4031.6,4031.5,4.146]
[1758789724664,13.41324252,4031.6,4031.5,4.146]
[1758789726663,13.41324252,4031.6,4031.5,0.002]
[1758789726857,13.41324252,4031.6,4031.5,3.403]
[1758789727854,15.89364732,4031.6,4031.5,0.002]
[1758789728973,18.89364732,4031.6,4031.5,0.002]
[1758789729176,31.22302636,4031.6,4031.5,0.002]
[1758789730887,18.89364732,4031.6,4031.5,0.002]
[1758789731207,31.22302636,4031.6,4031.5,0.002]
[1758789731364,18.89364732,4031.6,4031.5,0.002]
[1758789731777,18.50458384,4031.6,4031.5,0.002]
[1758789732868,30.83396288,4031.6,4031.5,0.002]
[1758789733099,30.83396288,4031.6,4031.0,0.002]
[1758789733100,2.48071246,4031.1,4031.0,0.002]
[1758789733313,31.28347054,4031.1,4031.0,0.002]
[1758789733604,34.95477054,4031.1,4031.0,0.002]
[1758789734401,35.08093536,4031.1,4031.0,0.002]
[1758789734763,34.95477054,4031.1,4031.0,0.002]
[1758789736066,35.3439357,4031.1,4031.0,0.002]
[1758789740501,34.95477054,4031.1,4031.0,0.002]
[1758789743581,35.34393652,4031.1,4031.0,0.002]
[1758789746398,35.34313652,4031.1,4031.0,0.002]
[1758789747705,27.13971672,4030.7,4030.6,0.002]
[1758789748013,31.28371672,4030.7,4030.6,0.002]
[1758789748201,31.95501672,4030.7,4030.6,0.002]
[1758789749118,34.95501672,4030.7,4030.6,0.002]
[1758789749515,5.48102019,4030.6,4030.5,0.002]
[1758789749886,6.15232019,4030.6,4030.5,0.002]
[1758789750297,6.54156344,4030.6,4030.5,0.002]
[1758789750507,3.0,4030.1,4029.1,0.02]
[1758789750707,12.32937904,4029.2,4029.1,0.02]
[1758789751110,12.32937904,4029.2,4029.1,0.2544]
[1758789754227,12.71866169,4029.2,4029.1,0.2544]
[1758789754787,12.71866169,4029.2,4029.1,0.6526]
[1758789755023,12.71866169,4029.2,4029.1,0.02]
[1758789755225,12.71866169,4029.2,4029.1,0.2544]
[1758789756199,12.71866169,4029.2,4029.1,0.02]
[1758789756406,12.71866169,4029.2,4029.1,0.2544]
[1758789756600,12.71866169,4029.2,4029.1,0.02]
[1758789757138,12.71866169,4029.2,4029.1,0.2544]
[1758789757430,12.71866169,4029.2,4029.1,0.02]
[1758789758535,12.95886169,4029.2,4029.1,0.02]
[1758789758852,12.71866169,4029.2,4029.1,0.02]
[1758789760840,12.32937904,4029.2,4029.1,0.02]
[1758789763202,14.81126129,4029.2,4029.1,0.02]
[1758789763529,12.32937904,4029.2,4029.1,0.02]
[1758789764105,12.32937904,4029.2,4029.1,0.022]
[1758789765052,12.71867719,4029.2,4029.1,0.022]
[1758789766133,0.38929815,4029.2,4029.1,0.022]
[1758789766327,0.41410851,4029.2,4029.1,0.022]
[1758789767343,0.38929815,4029.2,4029.1,0.022]
[1758789768113,34.92423848,4029.2,4029.1,0.022]
[1758789768313,35.35813848,4029.2,4029.1,0.022]
[1758789769556,23.02875944,4029.2,4029.1,0.022]
[1758789770254,25.09675944,4029.2,4029.1,0.022]
[1758789770834,24.70746129,4029.2,4029.1,0.022]
[1758789771578,24.70666129,4029.2,4029.1,0.022]
[1758789772156,37.03604033,4029.2,4029.1,0.022]
[1758789772376,37.82804033,4029.2,4029.1,0.022]
[1758789772668,27.62427966,4029.2,4029.1,0.022]
[1758789775292,28.01367909,4029.2,4029.1,0.022]
[1758789775467,28.26217909,4029.2,4029.1,0.022]
[1758789775663,28.01367909,4029.2,4029.1,0.022]
[1758789778669,28.01367909,4029.2,4028.6,0.002]
[1758789778670,3.27419028,4028.7,4028.6,0.002]